bitfinex/quotes_SOLUSD_20230703
["timestamp","ask_amount","ask_price","bid_price","bid_amount"]
[1688365818996,78.281,19.315,19.301,56.419]
[1688365820097,78.281,19.315,19.305,21.911]
[1688365823691,55.0,19.314,19.305,21.911]
[1688365823900,21.904,19.312,19.305,21.911]
[1688365826005,21.904,19.312,19.303,21.912]
[1688365826195,21.904,19.312,19.303,21.913]
[1688365827291,21.904,19.312,19.29,22.28]
[1688365827487,22.36,19.31,19.291,98.106]
[1688365827687,78.324,19.305,19.296,21.92]
[1688365828908,21.912,19.305,19.296,21.92]
[1688365829207,78.758,19.31,19.296,21.92]
[1688365829408,21.91,19.306,19.296,21.92]
[1688365830809,78.317,19.306,19.296,21.92]
[1688365831401,56.442,19.314,19.297,20.0]
[1688365831402,21.909,19.308,19.297,20.0]
[1688365831593,21.909,19.308,19.3,21.916]
[1688365831906,102.887,19.313,19.3,21.916]
[1688365831907,21.907,19.309,19.3,21.916]
[1688365832300,102.869,19.316,19.3,21.916]
[1688365832499,21.903,19.313,19.3,21.916]
[1688365832803,78.289,19.313,19.301,91.7955]
[1688365833002,78.289,19.313,19.303,21.912]
[1688365834426,78.289,19.313,19.294,56.381]
[1688365834427,78.289,19.313,19.302,21.914]
[1688365834711,78.289,19.313,19.296,102.974]
[1688365834712,181.213,19.309,19.299,21.918]
[1688365835498,181.213,19.309,19.298,21.919]
[1688365835703,181.213,19.309,19.297,21.92]
[1688365835890,181.213,19.309,19.295,91.7955]
[1688365836734,181.213,19.309,19.293,56.442]
[1688365837208,181.213,19.309,19.295,21.921]
[1688365837510,55.0,19.308,19.293,21.924]
[1688365837723,181.261,19.304,19.293,21.924]
[1688365840516,21.913,19.304,19.293,78.369]
[1688365842405,21.913,19.304,19.294,55.0]
[1688365842599,21.913,19.304,19.296,21.921]
[1688365845518,21.913,19.304,19.295,21.922]
[1688365851499,21.913,19.304,19.296,55.0]
[1688365851702,21.913,19.304,19.298,21.918]
[1688365851915,21.913,19.304,19.293,148.1343]
[1688365852112,21.913,19.304,19.296,21.92]
[1688365853423,21.913,19.304,19.299,21.918]
[1688365855219,47.87,19.32,19.299,21.918]
[1688365855220,21.909,19.307,19.299,21.918]
[1688365855426,21.907,19.309,19.3,77.36]
[1688365855608,21.905,19.311,19.302,78.331]
[1688365855812,21.905,19.311,19.303,55.0]
[1688365856014,21.905,19.311,19.305,21.91]
[1688365857421,21.905,19.311,19.303,21.913]
[1688365857605,124.799,19.311,19.297,21.919]
[1688365857803,124.799,19.311,19.299,21.917]
[1688365862625,124.799,19.311,19.299,78.344]
[1688365863505,21.905,19.311,19.299,78.344]
[1688365864116,21.905,19.311,19.303,21.913]
[1688365867929,21.903,19.313,19.303,78.329]
[1688365868136,21.903,19.313,19.304,55.0]
[1688365868318,21.903,19.313,19.306,78.315]
[1688365869819,21.903,19.313,19.3,22.36]
[1688365870021,78.289,19.313,19.305,21.911]
[1688365874832,78.289,19.313,19.303,21.912]
[1688365875229,78.289,19.313,19.302,21.914]
[1688365877921,78.289,19.313,19.303,55.0]
[1688365878133,78.289,19.313,19.306,21.91]
[1688365880214,78.289,19.313,19.305,21.911]
[1688365880415,78.289,19.313,19.301,21.915]
[1688365880853,78.289,19.313,19.299,91.2581]
[1688365881534,78.289,19.313,19.299,113.1761]
[1688365881721,78.289,19.313,19.299,21.918]
[1688365881920,20.0,19.312,19.295,10.83719922]
[1688365882123,78.317,19.306,19.292,102.994]
[1688365882324,78.317,19.306,19.296,21.921]
[1688365886121,78.317,19.306,19.288,103.016]
[1688365886438,78.317,19.306,19.296,21.921]
[1688365886636,78.317,19.306,19.294,21.922]
[1688365894044,78.317,19.306,19.293,21.924]
[1688365894427,55.0,19.305,19.293,21.924]
[1688365894623,181.278,19.302,19.293,21.924]
[1688365895334,181.278,19.302,19.291,21.926]
[1688365896331,181.341,19.295,19.286,21.932]
[1688365897242,181.341,19.295,19.284,21.934]
[1688365897739,181.341,19.295,19.278,56.486]
[1688365897939,181.341,19.295,19.284,21.935]
[1688365899434,181.341,19.295,19.28,21.938]
[1688365899635,181.341,19.295,19.281,21.938]
[1688365900426,75.0,19.294,19.28,21.939]
[1688365900632,75.0,19.294,19.278,21.941]
[1688365900633,181.389,19.29,19.278,21.941]
[1688365901157,181.389,19.29,19.278,32.77819922]
[1688365901536,78.382,19.29,19.279,10.83719922]
[1688365901932,21.928,19.29,19.282,21.937]
[1688365902353,21.928,19.29,19.279,10.83719922]
[1688365902646,21.928,19.29,19.277,56.489]
[1688365902955,21.928,19.29,19.277,67.32619922]
[1688365903442,21.928,19.29,19.277,56.489]
[1688365904252,21.928,19.29,19.28,21.939]
[1688365904848,21.928,19.29,19.279,21.94]
[1688365906460,44.288,19.29,19.275,21.944]
[1688365906762,181.445,19.284,19.272,86.1276]
[1688365906938,181.445,19.284,19.269,56.513]
[1688365907952,181.445,19.284,19.273,21.947]
[1688365908634,78.432,19.278,19.267,21.954]
[1688365908837,78.432,19.278,19.26,125.545]
[1688365909048,78.432,19.278,19.264,21.957]
[1688365909252,22.36,19.28,19.256,21.966]
[1688365909253,181.55,19.273,19.256,21.966]
[1688365909473,181.55,19.273,19.254,10.83719922]
[1688365909474,22.22,19.27,19.254,10.83719922]
[1688365909754,22.22,19.27,19.252,21.971]
[1688365909755,181.62,19.266,19.252,21.971]
[1688365910542,181.62,19.266,19.252,78.536]
[1688365910543,21.956,19.266,19.252,78.536]
[1688365910740,56.508,19.272,19.253,10.83719922]
[1688365910971,56.508,19.272,19.254,20.0]
[1688365910972,21.949,19.272,19.254,20.0]
[1688365911152,56.491,19.278,19.26,22.36]
[1688365911447,21.949,19.272,19.265,21.956]
[1688365912258,78.455,19.272,19.26,10.83719922]
[1688365912463,78.455,19.272,19.257,103.177]
[1688365912464,22.26,19.27,19.257,21.965]
[1688365912669,181.609,19.267,19.251,56.566]
[1688365912837,181.609,19.267,19.248,159.803]
[1688365913036,181.609,19.267,19.252,21.97]
[1688365913449,55.0,19.266,19.252,21.97]
[1688365913656,21.96,19.262,19.252,21.97]
[1688365914963,21.96,19.262,19.252,20.47]
[1688365915458,78.496,19.262,19.252,20.47]
[1688365916563,21.96,19.262,19.252,20.47]
[1688365917063,21.958,19.264,19.252,31.30719922]
[1688365917258,103.099,19.273,19.253,10.83719922]
[1688365917564,103.099,19.273,19.263,21.958]
[1688365917565,21.949,19.272,19.263,21.958]
[1688365918343,125.565,19.28,19.263,125.109]
[1688365918561,21.948,19.273,19.263,125.109]
[1688365920345,21.948,19.273,19.264,55.0]
[1688365920545,20.783238,19.281,19.266,78.476]
[1688365920546,56.488,19.279,19.266,78.476]
[1688365920740,21.944,19.276,19.267,55.0]
[1688365920961,21.944,19.276,19.266,78.476]
[1688365920962,21.944,19.276,19.27,21.95]
[1688365921648,158.037,19.285,19.27,21.95]
[1688365921849,21.939,19.281,19.271,55.0]
[1688365922047,21.939,19.281,19.27,67.34919922]
[1688365922660,21.939,19.281,19.264,90.9498]
[1688365922661,78.419,19.281,19.269,21.951]
[1688365922956,78.419,19.281,19.264,90.9498]
[1688365923148,78.419,19.281,19.267,21.954]
[1688365923149,181.518,19.277,19.267,21.954]
[1688365923954,181.518,19.277,19.266,21.955]
[1688365924160,55.0,19.276,19.266,21.955]
[1688365924456,55.0,19.276,19.261,103.159]
[1688365924457,21.947,19.273,19.261,103.159]
[1688365924660,78.45,19.273,19.26,56.539]
[1688365924859,78.45,19.273,19.257,56.549]
[1688365925155,181.596,19.268,19.258,21.964]
[1688365925356,181.596,19.268,19.257,21.965]
[1688365925558,21.953,19.268,19.257,21.965]
[1688365925854,21.952,19.269,19.261,21.961]
[1688365926259,21.951,19.27,19.261,21.961]
[1688365928047,21.957,19.265,19.258,21.963]
[1688365928657,21.957,19.265,19.255,56.554]
[1688365928658,78.484,19.265,19.249,103.223]
[1688365928863,55.0,19.264,19.249,103.223]
[1688365929065,21.963,19.26,19.254,21.968]
[1688365929674,56.521,19.267,19.254,21.968]
[1688365929957,21.958,19.264,19.254,21.968]
[1688365934564,21.958,19.264,19.25,56.568]
[1688365934876,22.37,19.26,19.248,21.975]
[1688365935051,78.517,19.257,19.244,56.588]
[1688365935256,78.517,19.257,19.242,56.594]
[1688365935666,78.517,19.257,19.242,67.43119922]
[1688365935863,78.517,19.257,19.246,21.978]
[1688365936676,21.966,19.257,19.246,32.81519922]
[1688365936869,21.964,19.258,19.247,30.83719922]
[1688365937170,22.47,19.27,19.247,30.83719922]
[1688365937171,56.514,19.27,19.25,204.232]
[1688365937368,56.514,19.27,19.255,78.522]
[1688365937369,21.956,19.266,19.255,78.522]
[1688365937571,21.954,19.267,19.256,55.0]
[1688365937865,47.94,19.28,19.259,78.507]
[1688365937866,56.512,19.273,19.259,78.507]
[1688365938071,21.948,19.273,19.26,55.0]
[1688365938367,21.948,19.273,19.259,10.83719922]
[1688365938549,30.8180195,19.273,19.26,21.961]
[1688365938749,21.948,19.273,19.26,21.961]
[1688365942672,21.948,19.273,19.26,44.341]
[1688365942977,21.948,19.273,19.264,181.629]
[1688365943272,56.493,19.277,19.264,181.629]
[1688365943273,21.946,19.274,19.264,181.629]
[1688365944076,21.945,19.275,19.264,181.629]
[1688365944257,21.945,19.275,19.265,55.0]
[1688365944565,21.945,19.275,19.268,21.953]
[1688365945052,21.945,19.275,19.261,99.0976]
[1688365945053,78.443,19.275,19.261,202.2566]
[1688365945259,78.443,19.275,19.262,55.0]
[1688365945870,78.443,19.275,19.265,21.955]
[1688365946464,78.443,19.275,19.256,10.83719922]
[1688365946663,78.443,19.275,19.251,103.212]
[1688365946664,75.0,19.274,19.251,103.212]
[1688365946861,75.0,19.274,19.256,21.966]
[1688365946862,181.604,19.268,19.256,21.966]
[1688365948267,21.954,19.268,19.256,78.519]
[1688365948972,21.951,19.27,19.257,55.0]
[1688365949161,113.012,19.276,19.263,78.49]
[1688365949477,56.497,19.276,19.263,78.49]
[1688365950178,21.949,19.272,19.263,78.49]
[1688365950967,21.949,19.272,19.263,21.958]
[1688365951276,78.455,19.272,19.263,21.958]
[1688365951778,21.947,19.274,19.263,78.491]
[1688365952079,21.947,19.274,19.267,21.954]
[1688365953869,56.524,19.281,19.267,78.475]
[1688365953870,56.482,19.281,19.267,78.475]
[1688365954076,20.0,19.28,19.267,78.475]
[1688365954260,21.941,19.279,19.272,21.948]
[1688365958881,25.79575506,19.288,19.272,78.454]
[1688365959073,56.463,19.287,19.272,78.454]
[1688365959269,21.936,19.283,19.272,78.454]
[1688365962287,21.936,19.283,19.273,55.0]
[1688365962583,21.936,19.283,19.276,21.944]
[1688365964487,21.935,19.284,19.276,21.944]
[1688365965190,21.933,19.286,19.276,21.944]
[1688365965490,56.449,19.292,19.277,55.0]
[1688365965677,21.931,19.288,19.283,21.935]
[1688365965992,21.928,19.29,19.283,21.935]
[1688365966190,56.442,19.294,19.283,21.935]
[1688365967190,21.928,19.29,19.283,21.935]
[1688365968086,56.442,19.294,19.284,55.0]
[1688365968087,21.928,19.291,19.284,55.0]
[1688365968279,21.928,19.291,19.286,21.932]
[1688365969690,56.435,19.297,19.286,21.932]
[1688365969882,56.435,19.297,19.287,55.0]
[1688365970085,21.926,19.292,19.288,21.929]
[1688365970886,78.374,19.292,19.284,21.934]
[1688365971090,78.374,19.292,19.283,21.936]
[1688365971673,21.926,19.292,19.283,21.936]
[1688365971887,21.926,19.292,19.286,21.932]
[1688365972575,21.926,19.292,19.284,55.0]
[1688365972891,21.926,19.292,19.285,21.934]
[1688365973099,21.926,19.292,19.284,55.0]
[1688365973393,21.926,19.292,19.283,21.936]
[1688365973607,21.926,19.292,19.28,21.938]
[1688365975492,21.926,19.292,19.281,55.0]
[1688365975695,21.926,19.292,19.284,21.934]
[1688365976085,21.926,19.292,19.281,76.937]
[1688365977393,21.926,19.292,19.28,21.939]
[1688365979281,21.926,19.292,19.284,21.934]
[1688365980381,21.926,19.292,19.279,56.483]
[1688365980576,21.926,19.292,19.282,21.937]
[1688365980776,21.926,19.292,19.28,21.938]
[1688365980987,21.926,19.292,19.274,10.83719922]
[1688365980988,20.0,19.291,19.272,103.1]
[1688365981281,78.4,19.286,19.278,21.941]
[1688365982304,78.4,19.286,19.275,96.8522]
[1688365982483,87.72474981,19.286,19.275,96.8522]
[1688365982685,87.72474981,19.286,19.266,103.132]
[1688365982886,9.32474981,19.285,19.269,21.952]
[1688365983087,9.32474981,19.285,19.263,103.15]
[1688365983088,22.34,19.28,19.263,103.15]
[1688365983293,78.443,19.275,19.267,21.953]
[1688365983784,21.945,19.275,19.267,21.953]
[1688365985099,78.443,19.275,19.267,21.953]
[1688365985403,78.443,19.275,19.261,120.1118]
[1688365987409,78.443,19.275,19.262,55.0]
[1688365987590,78.443,19.275,19.265,21.955]
[1688365987785,78.443,19.275,19.262,111.535]
[1688365987786,78.443,19.275,19.262,55.0]
[1688365988104,78.443,19.275,19.262,21.96]
[1688365988592,181.597,19.268,19.258,21.964]
[1688365991306,181.597,19.268,19.257,21.965]
[1688365992211,21.953,19.268,19.257,21.965]
[1688365992398,21.953,19.268,19.258,55.0]
[1688365992597,21.953,19.268,19.261,21.961]
[1688365995112,21.953,19.268,19.254,90.434]
[1688365995413,21.953,19.268,19.255,56.554]
[1688365995601,21.953,19.268,19.257,21.964]
[1688365995800,21.953,19.268,19.255,55.0]
[1688365996110,21.953,19.268,19.254,90.434]
[1688365996505,21.953,19.268,19.255,21.968]
[1688365998017,21.953,19.268,19.256,55.0]
[1688365998320,21.953,19.268,19.259,21.963]
[1688366000119,21.953,19.268,19.254,90.434]
[1688366000503,21.953,19.268,19.257,21.965]
[1688366001020,21.953,19.268,19.258,20.0]
[1688366001211,21.953,19.268,19.261,21.961]
[1688366002131,21.953,19.268,19.261,78.5]
[1688366003132,21.952,19.27,19.261,78.5]
[1688366003429,21.949,19.272,19.266,21.954]
[1688366004026,78.455,19.272,19.265,21.956]
[1688366004422,78.455,19.272,19.264,21.957]
[1688366005428,78.455,19.272,19.256,103.185]
[1688366005631,78.455,19.272,19.259,55.0]
[1688366005926,78.455,19.272,19.264,21.957]
[1688366006122,78.455,19.272,19.264,78.487]
[1688366006123,21.949,19.272,19.264,78.487]
[1688366006318,21.946,19.275,19.264,181.632]
[1688366006517,21.943,19.278,19.268,78.471]
[1688366006712,21.941,19.279,19.271,78.458]
[1688366007913,21.94,19.28,19.271,78.458]
[1688366009513,21.94,19.28,19.271,21.949]
[1688366010628,112.44274981,19.288,19.271,21.949]
[1688366010825,21.938,19.282,19.271,21.949]
[1688366011024,21.938,19.282,19.27,159.621]
[1688366011025,21.938,19.282,19.27,56.512]
[1688366011218,21.938,19.282,19.266,94.4447]
[1688366011219,78.415,19.282,19.272,21.947]
[1688366011614,87.73974981,19.282,19.272,21.947]
[1688366011815,87.73974981,19.282,19.27,21.95]
[1688366012927,78.439,19.276,19.267,21.954]
[1688366013131,78.439,19.276,19.266,21.955]
[1688366014933,78.439,19.276,19.265,21.956]
[1688366016935,21.944,19.276,19.269,21.952]
[1688366017247,29.32474981,19.281,19.269,21.952]
[1688366017248,21.943,19.277,19.269,21.952]
[1688366017530,21.942,19.278,19.272,21.948]
[1688366019021,56.474,19.284,19.273,55.0]
[1688366019333,21.94,19.28,19.276,21.944]
[1688366019917,21.938,19.282,19.276,21.944]
[1688366020126,56.474,19.284,19.276,21.944]
[1688366021223,56.463,19.287,19.277,55.0]
[1688366021425,21.935,19.284,19.28,21.939]
[1688366021628,21.935,19.284,19.278,21.941]
[1688366023835,56.457,19.289,19.278,21.941]
[1688366024139,21.933,19.286,19.278,21.941]
[1688366025018,21.933,19.286,19.281,21.938]
[1688366025637,21.933,19.286,19.275,103.082]
[1688366025638,78.398,19.286,19.275,21.945]
[1688366026021,78.398,19.286,19.274,21.946]
[1688366027415,77.898,19.286,19.274,21.946]
[1688366027621,77.898,19.286,19.27,91.9803]
[1688366027825,77.898,19.286,19.27,113.9303]
[1688366028223,77.398,19.286,19.27,113.9303]
[1688366029219,77.398,19.286,19.27,170.4423]
[1688366029836,77.398,19.286,19.271,55.0]
[1688366030021,20.933,19.286,19.275,181.524]
[1688366030223,20.933,19.286,19.276,55.0]
[1688366030440,20.933,19.286,19.279,21.94]
[1688366031726,26.18733157,19.287,19.279,21.94]
[1688366031943,26.18733157,19.287,19.28,55.0]
[1688366032235,21.931,19.288,19.282,21.937]
[1688366033084,25.79835353,19.291,19.278,97.268]
[1688366033335,78.39,19.288,19.278,119.209]
[1688366033520,78.39,19.288,19.278,21.941]
[1688366033724,21.931,19.288,19.278,21.941]
[1688366033923,21.931,19.288,19.278,78.43]
[1688366034531,21.931,19.288,19.279,55.0]
[1688366034734,21.931,19.288,19.281,21.938]
[1688366037839,21.931,19.288,19.282,55.0]
[1688366038037,21.931,19.288,19.282,76.936]
[1688366038541,21.928,19.29,19.282,76.936]
[1688366038743,45.14,19.31,19.282,76.936]
[1688366038941,45.14,19.31,19.282,133.413]
[1688366038942,102.966,19.298,19.282,133.413]
[1688366039143,124.885,19.298,19.282,133.413]
[1688366041054,124.885,19.298,19.282,78.413]
[1688366042329,124.885,19.298,19.283,55.0]
[1688366042649,124.885,19.298,19.283,21.935]
[1688366042952,181.389,19.29,19.277,21.942]
[1688366043453,9.451458,19.289,19.276,21.944]
[1688366043661,181.431,19.286,19.276,21.944]
[1688366044145,21.932,19.287,19.277,55.0]
[1688366044347,43.8017851,19.298,19.28,78.422]
[1688366044348,21.927,19.291,19.28,78.422]
[1688366044648,22.34,19.3,19.28,78.422]
[1688366044649,21.929,19.29,19.281,55.0]
[1688366044849,21.929,19.29,19.283,21.936]
[1688366045152,21.929,19.29,19.282,21.937]
[1688366051454,21.926,19.292,19.283,55.0]
[1688366051656,56.436,19.297,19.285,78.401]
[1688366052037,65.887458,19.297,19.285,78.401]
[1688366052538,21.921,19.297,19.286,55.0]
[1688366052760,21.921,19.297,19.29,21.927]
[1688366053239,21.921,19.297,19.289,56.456]
[1688366053240,21.921,19.297,19.292,21.925]
[1688366054529,21.921,19.297,19.292,21.81322465]
[1688366054734,21.921,19.297,19.291,21.927]
[1688366054959,78.354,19.297,19.29,21.928]
[1688366055161,78.354,19.297,19.289,21.929]
[1688366058543,21.921,19.297,19.289,21.929]
[1688366058761,21.921,19.297,19.29,55.0]
[1688366058946,78.354,19.297,19.287,21.931]
[1688366059142,181.323,19.297,19.287,21.931]
[1688366059348,181.323,19.297,19.288,55.0]
[1688366059659,78.354,19.297,19.288,76.929]
[1688366060838,78.354,19.297,19.288,55.0]
[1688366061143,78.354,19.297,19.286,21.932]
[1688366061338,78.354,19.297,19.287,55.0]
[1688366061736,78.354,19.297,19.287,76.931]
[1688366062335,21.921,19.297,19.287,133.393]
[1688366062948,78.354,19.297,19.287,21.931]
[1688366063155,87.805458,19.297,19.287,21.931]
[1688366066040,87.805458,19.297,19.279,103.062]
[1688366066041,9.451458,19.296,19.279,103.062]
[1688366066241,181.399,19.289,19.279,21.939]
[1688366066638,78.399,19.286,19.279,21.939]
[1688366069057,21.933,19.286,19.28,55.0]
[1688366069260,21.933,19.286,19.281,21.938]
[1688366072569,21.933,19.286,19.282,55.0]
[1688366072757,21.933,19.286,19.282,76.936]
[1688366073650,21.933,19.286,19.282,55.0]
[1688366074162,21.933,19.286,19.281,21.938]
[1688366074353,21.933,19.286,19.28,21.939]
[1688366074550,21.933,19.286,19.281,55.0]
[1688366075063,21.933,19.286,19.279,21.94]
[1688366075264,21.933,19.286,19.28,55.0]
[1688366075573,21.933,19.286,19.275,56.495]
[1688366075758,21.933,19.286,19.277,21.942]
[1688366076959,21.933,19.286,19.278,55.0]
[1688366077165,21.933,19.286,19.28,21.939]
[1688366078463,21.933,19.286,19.281,55.0]
[1688366078655,21.933,19.286,19.281,76.937]
[1688366079756,21.933,19.286,19.28,21.939]
[1688366079955,21.933,19.286,19.275,56.495]
[1688366080154,21.933,19.286,19.276,55.0]
[1688366080369,78.398,19.286,19.279,21.94]
[1688366080551,78.398,19.286,19.278,21.941]
[1688366084853,21.933,19.286,19.278,21.941]
[1688366085169,21.933,19.286,19.279,55.0]
[1688366085358,21.933,19.286,19.281,21.938]
[1688366088771,9.45436451,19.294,19.281,21.938]
[1688366088772,21.931,19.288,19.281,21.938]
[1688366088977,21.931,19.288,19.282,55.0]
[1688366089276,21.931,19.288,19.283,21.935]
[1688366089574,21.931,19.288,19.284,55.0]
[1688366089876,21.931,19.288,19.283,21.935]
[1688366091376,21.931,19.288,19.282,21.936]
[1688366091859,21.931,19.288,19.284,21.934]
[1688366092468,21.929,19.29,19.285,55.0]
[1688366092771,21.927,19.291,19.286,21.932]
[1688366092950,21.927,19.291,19.287,76.93]
[1688366094756,21.926,19.293,19.287,76.93]
[1688366098569,21.926,19.293,19.287,21.93]
[1688366099375,9.45436451,19.298,19.287,78.392]
[1688366099572,21.924,19.294,19.287,21.93]
[1688366100573,31.37836451,19.294,19.284,21.935]
[1688366100769,9.45436451,19.293,19.282,98.0484]
[1688366100959,9.45436451,19.293,19.27,112.42]
[1688366100960,78.382,19.29,19.28,21.939]
[1688366101366,9.45436451,19.289,19.28,21.939]
[1688366101575,21.93,19.288,19.28,21.939]
[1688366101760,56.486,19.295,19.28,21.939]
[1688366102074,46.73038491,19.296,19.28,21.939]
[1688366102075,21.927,19.291,19.28,21.939]
[1688366102263,20.0,19.29,19.28,21.939]
[1688366102466,21.93,19.288,19.281,55.0]
[1688366102665,21.93,19.288,19.283,21.936]
[1688366102958,21.93,19.288,19.284,76.934]
[1688366103163,20.0,19.29,19.284,76.934]
[1688366103369,21.929,19.29,19.284,76.934]
[1688366103759,56.439,19.296,19.284,76.934]
[1688366104162,65.89336451,19.296,19.284,76.934]
[1688366104580,9.45436451,19.295,19.284,76.934]
[1688366104782,21.926,19.292,19.284,76.934]
[1688366107304,9.45436451,19.295,19.284,76.934]
[1688366107479,21.924,19.294,19.284,76.934]
[1688366110785,56.433,19.298,19.284,76.934]
[1688366110982,21.918,19.3,19.284,76.934]
[1688366111191,21.918,19.3,19.285,20.0]
[1688366111488,21.915,19.302,19.29,22.44]
[1688366111666,21.915,19.302,19.293,78.367]
[1688366111982,21.915,19.302,19.294,55.0]
[1688366112181,21.915,19.302,19.296,21.921]
[1688366112386,21.915,19.302,19.297,55.0]
[1688366112692,21.915,19.302,19.298,21.918]
[1688366116186,21.915,19.302,19.294,56.439]
[1688366116387,21.915,19.302,19.295,55.0]
[1688366116774,21.915,19.302,19.296,21.921]
[1688366118668,21.913,19.304,19.296,124.895]
[1688366118869,56.401,19.309,19.299,21.918]
[1688366118870,21.912,19.305,19.299,21.918]
[1688366119071,21.91,19.306,19.301,21.915]
[1688366120187,21.907,19.309,19.301,21.915]
[1688366120581,21.907,19.309,19.302,55.0]
[1688366120892,21.907,19.309,19.302,76.913]
[1688366121085,21.906,19.31,19.302,76.913]
[1688366121274,82.156421,19.314,19.302,76.913]
[1688366121275,56.383,19.314,19.302,76.913]
[1688366121481,21.901,19.314,19.302,76.913]
[1688366121995,21.901,19.314,19.303,97.6586]
[1688366122292,21.901,19.314,19.306,21.909]
[1688366122477,21.901,19.314,19.307,55.0]
[1688366122678,21.901,19.314,19.309,21.906]
[1688366122886,21.901,19.314,19.31,76.905]
[1688366123074,21.901,19.314,19.311,76.904]
[1688366123279,21.9,19.315,19.311,21.904]
[1688366123591,21.9,19.315,19.295,402.3]
[1688366123592,78.281,19.315,19.295,402.3]
[1688366123774,78.281,19.315,19.303,21.913]
[1688366124182,87.73536451,19.315,19.303,21.913]
[1688366124683,21.9,19.315,19.303,21.913]
[1688366125079,21.9,19.315,19.305,21.91]
[1688366125289,21.9,19.315,19.306,55.0]
[1688366125481,21.9,19.315,19.304,55.0]
[1688366125893,21.9,19.315,19.303,55.0]
[1688366126777,21.9,19.315,19.254,107.35484361]
[1688366126778,22.44,19.31,19.288,103.016]
[1688366127099,78.327,19.304,19.292,56.447]
[1688366127298,78.327,19.304,19.295,21.922]
[1688366127594,21.913,19.304,19.295,21.922]
[1688366128397,21.913,19.304,19.294,21.923]
[1688366129573,21.913,19.304,19.297,21.919]
[1688366129775,21.913,19.304,19.298,76.918]